bitfinex/quotes_BTCUSD_20241024
["timestamp","ask_amount","ask_price","bid_price","bid_amount"]
[1729729726160,0.77382173,66585.0,66584.0,0.14506617]
[1729729726161,0.86324035,66585.0,66584.0,0.14506617]
[1729729726387,0.86324035,66585.0,66569.0,0.22969385]
[1729729726388,0.150217,66570.0,66569.0,0.22969385]
[1729729726577,0.76834563,66570.0,66569.0,0.22969385]
[1729729726824,0.76834563,66570.0,66569.0,0.005]
[1729729727269,0.76834563,66570.0,66569.0,0.45566]
[1729729728412,0.8308443,66570.0,66569.0,0.45566]
[1729729728851,0.83527313,66570.0,66569.0,0.45566]
[1729729729536,0.83540207,66570.0,66569.0,0.45566]
[1729729731103,0.56575748,66570.0,66569.0,0.45566]
[1729729731324,0.250217,66570.0,66569.0,0.45566]
[1729729731538,0.31728156,66570.0,66569.0,0.45566]
[1729729734133,0.31728156,66570.0,66569.0,0.46489376]
[1729729734351,0.31729935,66570.0,66569.0,0.46489376]
[1729729736160,0.41534937,66570.0,66569.0,0.46489376]
[1729729736379,0.52718589,66570.0,66569.0,0.46489376]
[1729729736593,0.41534937,66570.0,66569.0,0.46489376]
[1729729736830,0.41534937,66570.0,66569.0,0.46571776]
[1729729739015,0.41534231,66570.0,66569.0,0.46571776]
[1729729741433,0.41531945,66570.0,66569.0,0.46571776]
[1729729742262,0.41531264,66570.0,66569.0,0.46571776]
[1729729744398,0.52708229,66570.0,66569.0,0.46571776]
[1729729747416,0.52685562,66570.0,66569.0,0.46571776]
[1729729748041,0.52910929,66570.0,66569.0,0.46571776]
[1729729752334,0.41740663,66570.0,66569.0,0.46571776]
[1729729752558,0.52910929,66570.0,66569.0,0.46571776]
[1729729753477,0.41740663,66570.0,66569.0,0.46571776]
[1729729753924,0.52910929,66570.0,66569.0,0.46571776]
[1729729754411,0.41740663,66570.0,66569.0,0.46571776]
[1729729754648,0.52910929,66570.0,66569.0,0.46571776]
[1729729756190,0.52685562,66570.0,66569.0,0.46571776]
[1729729759481,0.41515296,66570.0,66569.0,0.46571776]
[1729729764579,0.41515296,66570.0,66569.0,0.56001776]
[1729729765484,0.54919615,66570.0,66569.0,0.56001776]
[1729729767288,0.69969996,66570.0,66569.0,0.46571776]
[1729729767519,0.56565677,66570.0,66569.0,0.46571776]
[1729729767750,0.56565677,66570.0,66569.0,0.456484]
[1729729767960,0.56565677,66570.0,66569.0,0.46582532]
[1729729770939,0.67666824,66570.0,66569.0,0.46582532]
[1729729771367,0.67666824,66570.0,66569.0,0.456484]
[1729729771553,0.67735932,66570.0,66569.0,0.456484]
[1729729771799,0.67735932,66570.0,66569.0,0.46586073]
[1729729774487,0.51173228,66570.0,66569.0,0.46586073]
[1729729774718,0.67736389,66570.0,66569.0,0.46586073]
[1729729776312,0.51173228,66570.0,66569.0,0.46586073]
[1729729777912,0.67735946,66570.0,66569.0,0.46586073]
[1729729779245,0.56634799,66570.0,66569.0,0.46586073]
[1729729779508,0.67735946,66570.0,66569.0,0.46586073]
[1729729780229,0.41584418,66570.0,66569.0,0.46586073]
[1729729780463,0.31584418,66570.0,66569.0,0.54746073]
[1729729781413,0.45045934,66570.0,66569.0,0.54746073]
[1729729781654,0.31584418,66570.0,66569.0,0.64676073]
[1729729781879,0.16562718,66570.0,66569.0,0.79698073]
[1729729782113,0.11218186,66570.0,66569.0,0.80167927]
[1729729782336,0.11218186,66571.0,66570.0,0.326117]
[1729729782783,0.25534512,66571.0,66570.0,0.64586624]
[1729729783269,0.08970365,66574.0,66573.0,0.1909]
[1729729783753,0.06725015,66574.0,66573.0,1.092161]
[1729729784199,0.06725015,66574.0,66573.0,1.10147724]
[1729729784430,0.06725015,66575.0,66574.0,0.150208]
[1729729784659,0.06725015,66576.0,66575.0,0.160206]
[1729729785120,0.21745415,66576.0,66575.0,0.46993624]
[1729729785342,0.06725015,66576.0,66575.0,0.46993624]
[1729729785569,0.150203,66577.0,66575.0,0.46993624]
[1729729785570,0.21745315,66577.0,66575.0,0.46993624]
[1729729785801,0.150204,66576.0,66575.0,0.46993624]
[1729729786745,0.21739588,66576.0,66575.0,0.46993624]
[1729729787002,0.31555267,66576.0,66575.0,0.46993624]
[1729729787231,0.40525632,66576.0,66575.0,0.46993624]
[1729729788374,0.31555267,66576.0,66575.0,0.46993624]
[1729729788605,0.40512745,66576.0,66575.0,0.46993624]
[1729729789694,0.31555267,66576.0,66575.0,0.46993624]
[1729729791655,0.150204,66576.0,66575.0,0.46993624]
[1729729792529,0.21735363,66576.0,66575.0,0.46993624]
[1729729796432,0.150204,66576.0,66575.0,0.46993624]
[1729729796679,0.06714963,66577.0,66575.0,0.46993624]
[1729729796904,0.04475075,66576.0,66575.0,0.46993624]
[1729729797166,0.150204,66576.0,66575.0,0.46993624]
[1729729797379,0.19495475,66576.0,66575.0,0.46993624]
[1729729797591,0.150204,66576.0,66575.0,0.46993624]
[1729729798017,0.150204,66576.0,66575.0,0.46062]
[1729729798253,0.19495475,66576.0,66575.0,0.46976947]
[1729729798708,0.150204,66576.0,66575.0,0.46976947]
[1729729798937,0.19495475,66576.0,66575.0,0.46976947]
[1729729801053,0.19494672,66576.0,66575.0,0.46976947]
[1729729801994,0.150204,66576.0,66575.0,0.46976947]
[1729729806038,0.150202,66577.0,66576.0,0.01]
[1729729806507,0.04474082,66578.0,66576.0,0.46061]
[1729729806728,0.06711123,66580.0,66578.0,0.01]
[1729729806729,0.04699386,66580.0,66578.0,0.01]
[1729729806966,0.15244804,66580.0,66579.0,0.01]
[1729729807471,0.15244804,66580.0,66579.0,0.46059]
[1729729810826,0.30816022,66580.0,66579.0,0.46059]
[1729729811065,0.33053063,66580.0,66579.0,0.46059]
[1729729812450,0.2634194,66580.0,66579.0,0.46059]
[1729729813871,0.42853592,66580.0,66579.0,0.46059]
[1729729814510,0.428548,66580.0,66579.0,0.46059]
[1729729815659,0.5180145,66580.0,66579.0,0.46059]
[1729729816672,0.51576146,66580.0,66579.0,0.46059]
[1729729816896,0.53812809,66580.0,66579.0,0.46059]
[1729729817103,0.54038113,66580.0,66579.0,0.46059]
[1729729817308,0.428548,66580.0,66579.0,0.46059]
[1729729817782,0.428548,66580.0,66579.0,0.46969871]
[1729729817998,0.54038113,66580.0,66579.0,0.46969871]
[1729729818230,0.42940977,66580.0,66579.0,0.46969871]
[1729729818505,0.40708083,66580.0,66579.0,0.56889871]
[1729729818736,0.40709648,66580.0,66579.0,0.65099871]
[1729729819435,0.40719578,66580.0,66579.0,0.65099871]
[1729729819668,0.40721427,66580.0,66579.0,0.65099871]
[1729729820827,0.300378,66583.0,66580.0,0.01]
[1729729820828,0.08953863,66581.0,66580.0,0.01]
[1729729821077,0.302024,66584.0,66581.0,0.1913]
[1729729821078,0.08953863,66582.0,66581.0,0.1913]
[1729729821306,0.11354817,66584.0,66582.0,0.01]
[1729729821307,0.22469385,66583.0,66582.0,0.01]
[1729729821545,0.25484635,66583.0,66582.0,0.01]
[1729729821763,0.25484635,66583.0,66582.0,0.61986304]
[1729729823102,0.16530772,66583.0,66582.0,0.61986304]
[1729729823312,0.09118663,66584.0,66582.0,0.46967304]
[1729729823950,0.00225292,66583.0,66582.0,0.46967304]
[1729729824207,0.00225292,66583.0,66582.0,0.61986304]
[1729729824694,0.00225292,66583.0,66582.0,0.47437068]
[1729729825128,0.00225292,66583.0,66582.0,0.47437054]
[1729729825550,0.04705706,66583.0,66582.0,0.47437054]
[1729729825964,0.04480414,66583.0,66582.0,0.80646054]
[1729729826177,0.04645214,66584.0,66583.0,0.107]
[1729729826382,0.001648,66584.0,66583.0,0.1116975]
[1729729826592,0.04645214,66584.0,66583.0,0.55757]
[1729729826814,0.04645214,66584.0,66583.0,0.71686104]
[1729729827060,0.001648,66584.0,66583.0,0.80645852]
[1729729827498,0.001648,66584.0,66583.0,0.81145852]
[1729729828341,0.001648,66584.0,66583.0,0.81145832]
[1729729828762,0.001648,66584.0,66583.0,0.96696213]
[1729729828981,0.001648,66584.0,66583.0,0.81145832]
[1729729829251,0.001648,66584.0,66583.0,0.66127032]
[1729729829456,0.151834,66584.0,66583.0,0.65627032]
[1729729829667,0.001648,66584.0,66583.0,0.65627032]
[1729729831404,0.001648,66584.0,66583.0,0.65157304]
[1729729831647,0.001648,66584.0,66583.0,0.46967304]
[1729729831648,0.151834,66584.0,66583.0,0.46967304]
[1729729831890,0.151834,66584.0,66583.0,0.47467304]
[1729729834231,0.001648,66584.0,66583.0,0.47467304]
[1729729834671,0.151834,66584.0,66583.0,0.47467304]
[1729729834882,0.151834,66584.0,66583.0,0.57167304]
[1729729835497,0.001648,66584.0,66583.0,0.57167304]
[1729729836118,0.001648,66584.0,66583.0,0.56667304]
[1729729836328,0.001648,66584.0,66583.0,0.57167304]
[1729729838410,0.001648,66584.0,66583.0,0.80176104]
[1729729839746,0.001648,66584.0,66583.0,0.80645835]
[1729729840180,0.001648,66584.0,66583.0,0.92742971]
[1729729842301,0.001648,66584.0,66583.0,1.07323621]
[1729729842501,0.001648,66584.0,66583.0,1.0779332]
[1729729844195,0.001648,66584.0,66583.0,1.0787572]
[1729729847506,0.001648,66584.0,66583.0,0.96778584]
[1729729848965,0.001648,66584.0,66583.0,1.0787572]
[1729729855740,0.001648,66584.0,66583.0,0.96778584]
[1729729856457,0.001648,66584.0,66583.0,0.96778583]
[1729729866142,0.001648,66584.0,66583.0,0.96308885]
[1729729866376,0.001648,66584.0,66583.0,0.96778583]
[1729729866921,0.001648,66584.0,66583.0,0.97530098]
[1729729867572,0.001648,66584.0,66583.0,0.66960917]
[1729729867800,0.001648,66584.0,66583.0,0.63038202]
[1729729869334,0.001648,66584.0,66583.0,0.72358504]
[1729729869534,0.001648,66584.0,66583.0,0.96638627]
[1729729869737,0.001648,66584.0,66583.0,0.96168885]
[1729729869920,0.001648,66584.0,66583.0,0.96368885]
[1729729870404,0.001648,66584.0,66583.0,0.96168885]
[1729729870827,0.001648,66584.0,66583.0,0.96638581]
[1729729873302,0.001648,66584.0,66583.0,0.96168885]
[1729729873533,0.001648,66584.0,66583.0,0.96638582]
[1729729873811,0.001648,66584.0,66583.0,0.96838582]
[1729729874434,0.001648,66584.0,66583.0,0.96638582]
[1729729874876,0.001648,66584.0,66583.0,0.96838582]
[1729729875123,0.001648,66584.0,66583.0,1.07735718]
[1729729877353,0.001648,66584.0,66583.0,1.07266021]
[1729729877555,0.001648,66584.0,66583.0,1.07735713]
[1729729878737,0.001648,66584.0,66583.0,1.07266021]
[1729729879165,0.001648,66584.0,66583.0,1.07466021]
[1729729880027,0.001648,66584.0,66583.0,1.08687221]
[1729729880145,0.001648,66584.0,66583.0,1.07266021]
[1729729880551,0.001648,66584.0,66583.0,1.07466021]
[1729729881167,0.001648,66584.0,66583.0,1.07266021]
[1729729881798,0.001648,66584.0,66583.0,1.08487218]
[1729729882568,0.001648,66584.0,66583.0,1.08687218]
[1729729883192,0.001648,66584.0,66583.0,1.07466021]
[1729729883407,0.001648,66584.0,66583.0,1.08687209]
[1729729884022,0.001648,66584.0,66583.0,1.22084345]
[1729729884948,0.001648,66584.0,66583.0,1.22084305]
[1729729885420,0.001648,66584.0,66583.0,1.10987169]
[1729729890312,0.001648,66584.0,66583.0,1.15492587]
[1729729890551,0.001648,66584.0,66583.0,1.15492522]
[1729729890766,0.001648,66584.0,66583.0,1.14271439]
[1729729890980,0.001648,66584.0,66583.0,1.15492519]
[1729729891691,0.001648,66584.0,66583.0,1.22084237]
[1729729892187,0.001648,66584.0,66583.0,1.36589655]
[1729729892432,0.001648,66584.0,66583.0,1.32084237]
[1729729892670,0.001648,66584.0,66583.0,1.38842365]
[1729729892914,0.001648,66584.0,66583.0,1.32084237]
[1729729893313,0.001648,66584.0,66583.0,1.41095074]
[1729729893546,0.001648,66584.0,66583.0,1.32084237]
[1729729895309,0.001648,66584.0,66583.0,1.43181373]
[1729729895810,0.001648,66584.0,66583.0,1.35092237]
[1729729896038,0.001648,66584.0,66583.0,1.46189373]
[1729729896528,0.001648,66588.0,66583.0,1.46189373]
[1729729896529,0.001648,66588.0,66587.0,0.72530172]
[1729729896768,0.001648,66588.0,66587.0,0.77704497]
[1729729897039,0.001648,66588.0,66587.0,1.23624303]
[1729729897498,0.001648,66588.0,66587.0,1.34863614]
[1729729897725,0.001648,66588.0,66587.0,1.23624303]
[1729729898469,0.001648,66588.0,66587.0,1.34859976]
[1729729899420,0.001648,66588.0,66587.0,1.23624303]
[1729729901118,0.001648,66588.0,66587.0,1.22403223]
[1729729901346,0.001648,66588.0,66587.0,1.32608141]
[1729729901592,0.001648,66588.0,66587.0,1.32608149]
[1729729902539,0.001648,66588.0,66587.0,1.23624002]
[1729729903519,0.001648,66588.0,66587.0,1.10226866]
[1729729903751,0.001648,66588.0,66587.0,1.21324002]
[1729729903985,0.001648,66588.0,66587.0,1.25814023]
[1729729904951,0.001648,66588.0,66587.0,1.28114023]
[1729729908793,0.001648,66588.0,66587.0,1.28114087]
[1729729912461,0.001648,66588.0,66587.0,1.26893244]
[1729729912655,0.001648,66588.0,66587.0,1.28114087]
[1729729912860,0.001648,66588.0,66587.0,1.2811408]
[1729729916166,0.001648,66588.0,66587.0,1.26893244]
[1729729916461,0.001648,66588.0,66587.0,1.28114087]
[1729729917511,0.001648,66588.0,66587.0,1.23624066]
[1729729919935,0.001648,66588.0,66587.0,1.19395223]
[1729729920129,0.001648,66588.0,66587.0,1.20116103]
[1729729920475,0.001648,66588.0,66587.0,1.20616103]
[1729729920681,0.001648,66588.0,66587.0,1.03106103]
[1729729920891,0.001648,66588.0,66587.0,0.89708967]
[1729729922454,0.001648,66588.0,66587.0,0.92008967]
[1729729924357,0.001648,66588.0,66587.0,0.92208967]
[1729729924543,0.001648,66588.0,66587.0,0.92008967]
[1729729924910,0.001648,66588.0,66587.0,0.92208967]
[1729729925692,0.001648,66588.0,66587.0,0.92008967]
[1729729927297,0.001648,66588.0,66587.0,0.92208967]
[1729729928551,0.001648,66588.0,66587.0,0.92008967]
[1729729928765,0.001648,66588.0,66587.0,1.00806103]
[1729729937080,0.001648,66588.0,66587.0,1.00806251]
[1729729938306,0.001648,66588.0,66587.0,1.01006251]
[1729729938736,0.001648,66588.0,66587.0,1.00806251]
[1729729938957,0.001648,66588.0,66587.0,0.89709115]
[1729729940101,0.001648,66588.0,66587.0,0.89909115]
[1729729940553,0.001648,66588.0,66587.0,0.88688087]
[1729729940775,0.001648,66588.0,66587.0,0.8990909]
[1729729941662,0.001648,66588.0,66587.0,0.89909105]
[1729729942103,0.001648,66588.0,66587.0,1.01006241]
[1729729942353,0.001648,66588.0,66587.0,0.92209105]
[1729729942587,0.001648,66588.0,66587.0,1.10409105]
[1729729942817,0.001648,66588.0,66587.0,1.25996362]
[1729729943067,0.001648,66588.0,66587.0,1.21506241]
[1729729943297,0.001648,66588.0,66587.0,1.10409105]
[1729729943529,0.001648,66588.0,66587.0,1.21506241]
[1729729944027,0.001648,66588.0,66587.0,1.10209105]
[1729729944280,0.001648,66588.0,66587.0,1.21506241]
[1729729944490,0.001648,66588.0,66587.0,1.21506205]
[1729729944709,0.001648,66588.0,66587.0,1.20754836]
[1729729944987,0.001648,66588.0,66587.0,1.21506217]
[1729729946115,0.001648,66588.0,66587.0,1.28240888]
[1729729946334,0.001648,66588.0,66587.0,1.21506217]
[1729729946573,0.001648,66588.0,66587.0,1.30490364]
[1729729946990,0.001648,66588.0,66587.0,1.33498364]
[1729729948041,0.001648,66588.0,66587.0,1.3227737]
[1729729948250,0.001648,66588.0,66587.0,1.14656196]
[1729729948452,0.001648,66588.0,66587.0,1.25954237]
[1729729948701,0.001648,66588.0,66587.0,1.19206084]
[1729729948903,0.001648,66588.0,66587.0,1.2350503]
[1729729949112,0.001648,66588.0,66587.0,0.79708948]
[1729729949261,0.001648,66588.0,66587.0,0.78843142]
[1729729951694,0.001648,66588.0,66587.0,0.77622281]
[1729729951905,0.001648,66588.0,66587.0,0.78843369]
[1729729955716,0.001648,66588.0,66587.0,0.79312984]
[1729729955916,0.001648,66588.0,66587.0,0.78843335]
[1729729957139,0.001648,66588.0,66587.0,0.79043335]
[1729729957545,0.001648,66588.0,66587.0,0.91293335]
[1729729958352,0.001648,66588.0,66587.0,1.08843335]
[1729729958578,0.001648,66588.0,66587.0,1.20850551]
[1729729958788,0.001648,66588.0,66587.0,1.11851335]
[1729729959143,0.001648,66588.0,66587.0,1.23100177]
[1729729959322,0.001648,66588.0,66587.0,1.11851157]
[1729729959530,0.001648,66588.0,66587.0,1.1654031]
[1729729960786,0.001648,66588.0,66587.0,1.11851157]
[1729729962666,0.001648,66588.0,66587.0,1.16537738]
[1729729962839,0.001648,66588.0,66587.0,1.16537653]
[1729729963260,0.001648,66588.0,66587.0,1.11851072]
[1729729965243,0.001648,66588.0,66587.0,1.08843072]
[1729729965451,0.001648,66588.0,66587.0,1.11851072]
[1729729966821,0.001648,66588.0,66587.0,1.11851078]
[1729729967767,0.001702,66595.0,66592.0,0.69031072]
[1729729967994,0.001702,66595.0,66592.0,0.99554011]
[1729729968222,0.001702,66595.0,66592.0,1.44604011]
[1729729969087,0.001702,66595.0,66592.0,1.45204611]
[1729729969344,0.001702,66595.0,66592.0,1.3396085]
[1729729970266,0.001702,66595.0,66594.0,0.307243]
[1729729970487,0.00165,66598.0,66597.0,0.80127008]
[1729729970747,0.00165,66598.0,66597.0,0.85300925]
[1729729970983,0.00165,66598.0,66597.0,1.30347925]
[1729729971220,0.00165,66598.0,66597.0,1.4158256]
[1729729971693,0.00165,66598.0,66597.0,1.52679696]
[1729729972865,0.00165,66598.0,66597.0,1.41445061]
[1729729973101,0.00165,66598.0,66597.0,1.30347925]
[1729729974054,0.00165,66598.0,66597.0,1.29127253]
[1729729974291,0.00165,66598.0,66597.0,1.3034779]
[1729729975434,0.00165,66598.0,66597.0,1.42007192]
[1729729975913,0.00165,66598.0,66597.0,1.53104328]
[1729729976115,0.00165,66598.0,66597.0,1.44890309]
[1729729976338,0.00165,66598.0,66597.0,1.33793173]
[1729729976987,0.22469385,66607.0,66606.0,0.027]
[1729729977157,0.22469385,66607.0,66606.0,0.8545879]
[1729729977388,0.0823,66621.0,66613.0,0.27512]
[1729729977696,0.0823,66621.0,66613.0,0.99916054]
[1729729977960,0.0823,66621.0,66617.0,0.175111]
[1729729978203,0.0823,66621.0,66617.0,0.43658617]
[1729729978437,0.0823,66621.0,66617.0,0.89162034]
[1729729978681,0.0823,66621.0,66617.0,0.78815965]
[1729729978891,0.0823,66621.0,66617.0,0.89913101]
[1729729980232,0.0823,66621.0,66617.0,0.78815965]
[1729729980970,0.0823,66621.0,66617.0,0.77595481]
[1729729981215,0.0823,66621.0,66617.0,0.78815976]
[1729729984720,0.0823,66621.0,66617.0,0.77815976]
[1729729984958,0.0907,66622.0,66617.0,0.61514521]
[1729729984959,0.187348,66618.0,66617.0,0.61514521]
[1729729985432,0.187348,66618.0,66617.0,0.61514584]
[1729729985693,0.187348,66618.0,66617.0,0.610451]
[1729729986371,0.187348,66618.0,66617.0,0.62014586]
[1729729987843,0.187348,66618.0,66617.0,0.62014563]
[1729729988088,0.187348,66618.0,66617.0,0.615451]
[1729729988322,0.187348,66618.0,66617.0,0.62014566]
[1729729988552,0.187348,66618.0,66617.0,0.61514566]
[1729729990909,0.187348,66618.0,66617.0,0.62014566]
[1729729992621,0.187348,66618.0,66617.0,0.77564947]
[1729729992622,0.014148,66618.0,66617.0,0.77564947]
[1729729992824,0.014148,66618.0,66617.0,0.78064947]
[1729729993401,0.014148,66618.0,66617.0,0.78816107]
[1729729998107,0.014148,66618.0,66617.0,0.62265726]
[1729729998335,0.110148,66618.0,66617.0,0.62265726]
[1729729998780,0.110148,66618.0,66617.0,0.61796277]
[1729729999032,0.110148,66618.0,66617.0,0.62265762]
[1729729999763,0.110148,66618.0,66617.0,0.62765762]
[1729730001433,0.110148,66618.0,66617.0,0.62265762]
[1729730001892,0.110148,66618.0,66617.0,0.610451]
[1729730002117,0.110148,66618.0,66617.0,0.61796276]
[1729730002352,0.110148,66618.0,66617.0,0.62265749]
[1729730005692,0.110148,66618.0,66617.0,0.610451]
[1729730005931,0.110148,66618.0,66617.0,0.62265745]
[1729730007294,0.43347935,66618.0,66617.0,0.46503479]
[1729730007564,0.36067035,66618.0,66617.0,0.46503479]
[1729730007786,0.36067035,66618.0,66617.0,0.46034]
[1729730008983,0.51077935,66618.0,66617.0,0.46034]
[1729730011750,0.36067035,66618.0,66617.0,0.46034]
[1729730012402,0.4484215,66618.0,66617.0,0.46034]
[1729730012723,0.546786,66618.0,66617.0,0.45034]
[1729730012728,0.4359215,66618.0,66617.0,0.45034]
[1729730012946,0.69096307,66618.0,66617.0,0.45034]
[1729730013381,0.60132383,66618.0,66617.0,0.45034]
[1729730013725,0.75182764,66618.0,66617.0,0.45034]
[1729730014395,0.8414006,66618.0,66617.0,0.45034]
[1729730015313,0.97469214,66618.0,66617.0,0.45034]
[1729730015540,0.97469214,66618.0,66617.0,0.27224]
[1729730016181,0.83356762,66618.0,66617.0,0.10034]
[1729730017174,0.471867,66605.0,66604.0,0.22469385]
[1729730017424,0.62737081,66605.0,66604.0,0.22469385]
[1729730017644,0.300295,66601.0,66598.0,0.000824]
[1729730017880,0.371881,66599.0,66598.0,0.000824]
[1729730018110,0.52238481,66599.0,66598.0,0.000824]
[1729730018332,0.29366381,66599.0,66598.0,0.000824]
[1729730018584,0.44381581,66599.0,66598.0,0.000824]
[1729730018809,0.44381581,66599.0,66598.0,0.451284]
[1729730019026,0.33520387,66599.0,66598.0,0.451284]
[1729730019518,0.26326906,66599.0,66598.0,0.451284]
[1729730019732,0.11311706,66599.0,66598.0,0.451284]
[1729730020466,0.00225256,66599.0,66598.0,0.451284]
[1729730021679,0.15240456,66599.0,66598.0,0.451284]
[1729730025937,0.30290837,66599.0,66598.0,0.451284]
[1729730027232,0.30490837,66599.0,66598.0,0.451284]
[1729730027450,0.30290837,66599.0,66598.0,0.451284]
[1729730031517,0.15240456,66599.0,66598.0,0.451284]
[1729730038954,0.150152,66599.0,66598.0,0.451284]
[1729730039176,0.30065581,66599.0,66598.0,0.451284]
[1729730039429,0.30455672,66599.0,66598.0,0.451284]
[1729730039710,0.41155672,66599.0,66598.0,0.451284]
[1729730040381,0.66150876,66599.0,66598.0,0.451284]
[1729730040615,0.66580146,66599.0,66598.0,0.451284]
[1729730040863,0.65950876,66599.0,66598.0,0.451284]
[1729730041583,0.66150876,66599.0,66598.0,0.451284]
[1729730041810,0.65950876,66599.0,66598.0,0.451284]
[1729730042306,0.66150876,66599.0,66598.0,0.451284]
[1729730042539,0.61297772,66599.0,66598.0,0.451284]
[1729730043658,0.61297772,66599.0,66583.0,0.005824]
[1729730043659,0.01,66584.0,66583.0,0.000824]
[1729730043856,0.01,66584.0,66569.0,0.000824]
[1729730043857,0.283206,66575.0,66574.0,0.22469385]
[1729730044008,0.458627,66575.0,66574.0,0.22469385]
[1729730044212,0.278217,66570.0,66569.0,0.000824]
[1729730044420,0.300431,66571.0,66569.0,0.000824]
[1729730044638,0.323638,66570.0,66569.0,0.000824]
[1729730045063,0.323638,66570.0,66569.0,0.451484]
[1729730045282,0.47414181,66570.0,66569.0,0.451484]
[1729730046333,0.4763954,66570.0,66569.0,0.451484]
[1729730046735,0.5763954,66570.0,66569.0,0.451484]
[1729730046945,0.4029744,66570.0,66569.0,0.451484]
[1729730048018,0.5763954,66570.0,66569.0,0.451484]
[1729730050129,0.4029744,66570.0,66569.0,0.451484]
[1729730053211,0.5763954,66570.0,66569.0,0.451484]
[1729730057323,0.5783954,66570.0,66569.0,0.451484]
[1729730058885,0.5833954,66570.0,66569.0,0.451484]
[1729730060183,0.5813954,66570.0,66569.0,0.451484]
[1729730061530,0.5833954,66570.0,66569.0,0.451484]
[1729730062181,0.5813954,66570.0,66569.0,0.451484]
[1729730065821,0.4029744,66570.0,66569.0,0.627284]
[1729730066449,0.5763954,66570.0,66569.0,0.627284]
[1729730071103,0.4029744,66570.0,66569.0,0.627284]
[1729730071790,0.25247059,66570.0,66569.0,0.627284]
[1729730071987,0.15247059,66570.0,66569.0,0.627284]
[1729730073338,0.15411859,66570.0,66569.0,0.627284]
[1729730082436,0.2651475,66570.0,66569.0,0.627284]
[1729730083510,0.30974567,66570.0,66569.0,0.627284]
[1729730084628,0.33204476,66570.0,66569.0,0.627284]
[1729730085525,0.43034784,66570.0,66569.0,0.627284]
[1729730086391,0.51954418,66570.0,66569.0,0.627284]
[1729730086601,0.43034784,66570.0,66569.0,0.627284]
[1729730086805,0.51954418,66570.0,66569.0,0.627284]
[1729730087461,0.43041408,66570.0,66569.0,0.627284]
[1729730088129,0.54234065,66570.0,66569.0,0.627284]
[1729730088338,0.43041408,66570.0,66569.0,0.627284]
[1729730089663,0.31938517,66570.0,66569.0,0.627284]
[1729730091197,0.31938517,66570.0,66569.0,0.632284]
[1729730091198,0.16916817,66570.0,66569.0,0.632284]
[1729730091413,0.15411859,66570.0,66569.0,0.632284]
[1729730092683,0.31962893,66570.0,66569.0,0.632284]
[1729730092890,0.31962877,66570.0,66569.0,0.632284]
[1729730094434,0.31959565,66570.0,66569.0,0.632284]
[1729730095088,0.15411859,66570.0,66569.0,0.632284]
[1729730096267,0.22134894,66570.0,66569.0,0.632284]
[1729730100201,0.15411859,66570.0,66569.0,0.632284]
[1729730100405,0.22134894,66570.0,66569.0,0.632284]
[1729730101666,0.00390159,66570.0,66569.0,0.632284]
[1729730101926,0.001648,66570.0,66569.0,0.79720256]
[1729730102145,0.001648,66570.0,66569.0,0.80472011]
[1729730104038,0.001648,66570.0,66569.0,0.79720256]
[1729730108169,0.001648,66570.0,66569.0,0.79720215]
[1729730111735,0.001648,66570.0,66569.0,0.79720223]
[1729730115334,0.001648,66570.0,66569.0,0.79720228]
[1729730118697,0.001648,66570.0,66569.0,0.792504]
[1729730118922,0.001648,66570.0,66569.0,0.79720221]
[1729730124432,0.001648,66570.0,66569.0,0.80471916]
[1729730124639,0.001648,66570.0,66569.0,0.79720221]
[1729730125131,0.001648,66570.0,66569.0,0.80471918]
[1729730126020,0.001648,66570.0,66569.0,0.80471904]
[1729730126233,0.001648,66570.0,66569.0,0.79720209]
[1729730126456,0.001648,66570.0,66569.0,0.80471907]
[1729730126929,0.001648,66570.0,66569.0,0.80471906]
[1729730129783,0.001648,66570.0,66569.0,0.80471904]
[1729730131858,0.001648,66570.0,66569.0,0.817448]
[1729730132550,0.001648,66570.0,66569.0,0.92847691]
[1729730132976,0.001648,66570.0,66569.0,0.91626187]
[1729730133204,0.001648,66570.0,66569.0,0.92847711]
[1729730140192,0.001648,66570.0,66569.0,0.91626187]
[1729730140443,0.001648,66570.0,66569.0,0.9284767]
[1729730146748,0.001648,66570.0,66569.0,0.91626187]
[1729730146957,0.001648,66570.0,66569.0,0.9284767]
[1729730147188,0.001648,66570.0,66569.0,1.19500942]
[1729730147410,0.001648,66570.0,66569.0,1.19500903]
[1729730147626,0.001648,66570.0,66569.0,1.21800903]
[1729730147844,0.001648,66570.0,66569.0,1.22800903]
[1729730148579,0.22469385,66582.0,66581.0,0.165192]
[1729730148797,0.22469385,66582.0,66581.0,0.72896807]
[1729730149014,0.29201924,66592.0,66591.0,0.184]
[1729730149015,0.22469385,66592.0,66591.0,0.184]
[1729730149232,0.22469385,66592.0,66591.0,0.45489677]
[1729730149462,0.22469385,66592.0,66591.0,0.91825734]
[1729730149698,0.26957744,66600.0,66598.0,0.155154]
[1729730149918,0.001648,66599.0,66598.0,0.56121182]
[1729730150134,0.001648,66599.0,66598.0,1.01636844]
[1729730150376,0.001648,66599.0,66598.0,1.02919408]
[1729730150818,0.001648,66599.0,66598.0,1.02919345]
[1729730151255,0.001648,66599.0,66598.0,1.18469726]
[1729730151481,0.001648,66599.0,66598.0,1.32872617]
[1729730151693,0.0125,66616.0,66614.0,0.45014691]
[1729730151914,0.0125,66616.0,66614.0,0.45484192]
[1729730152128,0.0125,66616.0,66614.0,0.9178862]
[1729730152342,0.0125,66616.0,66614.0,0.76307319]
[1729730152552,0.0125,66616.0,66615.0,0.160116]
[1729730152975,0.0125,66616.0,66615.0,0.62296695]
[1729730158165,0.0125,66616.0,66615.0,0.62796695]
[1729730158416,0.0125,66616.0,66615.0,0.77847076]
[1729730158648,0.0125,66616.0,66615.0,0.86527076]
[1729730158860,0.0125,66616.0,66615.0,0.96327076]
[1729730160227,0.0125,66616.0,66615.0,0.98627076]
[1729730161758,0.0125,66616.0,66615.0,1.1117892]
[1729730161975,0.0125,66616.0,66615.0,1.11648372]
[1729730162184,0.0125,66616.0,66615.0,1.21648372]
[1729730162398,0.0125,66616.0,66615.0,1.10545481]
[1729730163088,0.0125,66616.0,66615.0,1.21648372]
[1729730163374,0.0017,66628.0,66627.0,0.70494682]
[1729730163602,0.22469385,66636.0,66635.0,0.70492882]
[1729730163823,0.22469385,66636.0,66635.0,0.86012715]
[1729730164035,0.22469385,66636.0,66635.0,1.32262495]